Cogmind - Beta 13 @@@ ROGUE MODE // 2024.04.06 @ 18:20:03 Player: Feral_Cog Result: Destroyed by G-47 Trooper with Particle Gun Performance ------------- Evolutions (0) 0 Regions Visited (2) 400 Robots Destroyed (24) 120 Value Destroyed (608) 608 Prototype IDs (0) 0 Alien Tech Used (0) 0 Bonus (0) 0 TOTAL SCORE: 1128 Bonus ------- None Cogmind --------- Core Integrity 0/250 Matter 217/300 Energy 237/265 System Corruption 0% Temperature Warning (314) Movement Treading (240) Ox1 Location -10/Mines Parts ------- > --- POWER (1) -------- Improved Ion Engine > --- PROPULSION (2) --- Light Treads > --- UTILITY (2) ------ Medium Storage Unit Core Shielding > --- WEAPON (2) ------- Particle Cannon Particle Cannon > --- INVENTORY (10) --- Small Storage Unit Structural Scanner Visual Processing Unit Sensor Array Core Shielding Hacking Suite Particle Cannon Peak State ------------ > --- POWER ------------ Improved Ion Engine > --- PROPULSION ------- Light Treads Light Treads > --- UTILITY ---------- Medium Storage Unit Core Shielding > --- WEAPON ----------- Particle Cannon Particle Cannon > --- INVENTORY -------- Improved Ion Engine Small Storage Unit Structural Scanner Visual Processing Unit Sensor Array Core Shielding Hacking Suite Particle Cannon [Rating: 11] Favorites ----------- Power Improved Ion Engine Engine Improved Ion Engine Propulsion Light Treads Treads Light Treads Utility Small Storage Unit Device Heat Sink Storage Small Storage Unit Protection Core Shielding Weapon Particle Cannon Energy Gun Small Laser Energy Cannon Particle Cannon Launcher Grenade Launcher Build | -11 -10 -10 ------- Run | Yrd Mat Min Slots Evolved . | . . . Power . | . . . Propulsion . | . . . Utility . | . . . Weapon . | . . . Parts Attached 21 | 6 11 4 Power 3 | 1 1 1 Engine 3 | 1 1 1 Core . | . . . Reactor . | . . . Propulsion 5 | 2 3 . Treads 5 | 2 3 . Leg . | . . . Wheel . | . . . Hover . | . . . Flight . | . . . Utility 6 | 1 4 1 Device 2 | . 2 . Storage 3 | 1 2 . Processor . | . . . Hackware . | . . . Protection 1 | . . 1 Artifact . | . . . Weapon 7 | 2 3 2 Energy Gun 3 | 2 1 . Energy Cannon 3 | . 1 2 Ballistic Gun . | . . . Ballistic Cannon . | . . . Launcher 1 | . 1 . Special Weapon . | . . . Impact Weapon . | . . . Slashing Weapon . | . . . Piercing Weapon . | . . . Special Melee Weapon . | . . . Unidentified Prototypes . | . . . Parts Lost 6 | . 3 3 Power 1 | . . 1 Propulsion 3 | . 2 1 Utility . | . . . Weapon 2 | . 1 1 Highest Loss Streak 2 | . 2 2 To Critical Strikes . | . . . Average Slot Usage (%) 96 | . 96 100 Engine 14 | . 14 14 Treads 28 | . 28 28 Device 9 | . 10 7 Storage 14 | . 14 14 Protection 1 | . . 6 Energy Gun 7 | . 9 . Energy Cannon 10 | . 8 17 Launcher 9 | . 9 10 Naked Turns . | . . . Heaviest Build 26 | 13 25 26 Greatest Support 40 | 40 40 40 Greatest Overweight (x) 1 | . . 1 Average Overweight (x) . | . . . Largest Inventory Capacity 10 | 8 10 10 Average Capacity 8 | 6 8 10 Most Carried 10 | 1 10 10 Average Carried 5 | . 5 9 Final Capacity 10 | 8 10 10 Final Carried 10 | 1 10 7 Class Distribution -------------------- 100% | Mutant Dominant Class ---------------- Mutant | -10/Materials Mutant | -10/Mines Resources | -11 -10 -10 ----------- Run | Yrd Mat Min Matter Collected 452 | 137 293 22 Remotely . | . . . Salvage Created 722 | . 607 115 Parts 45 | . 36 9 Haulers Intercepted 1 | . 1 . Recyclers Shooed . | . . . Parts Field Recycled . | . . . Retrieved Matter . | . . . Parts Self-Destructed . | . . . Prevented . | . . . Kills | -11 -10 -10 ------- Run | Yrd Mat Min Combat Hostiles Destroyed 16 | . 10 6 Guns 4 | . 4 . Cannons 5 | . 2 3 AOE 6 | . 3 3 Classes Destroyed 7 | . 6 1 Worker 2 | . 2 . Hauler 1 | . 1 . Recycler 1 | . 1 . Operator 2 | . 2 . Watcher 2 | . 2 . Swarmer 3 | . . 3 Grunt 13 | . 10 3 Best Kill Streak 4 | . 4 3 Combat Bots Only 3 | . 2 3 Max Kills in Single Turn 2 | . 2 2 Gunslinging . | . . . Exploded 2 | . 1 2 Melee . | . . . Uniques/NPCs Destroyed . | . . . Combat | -11 -10 -10 -------- Run | Yrd Mat Min Hostile Shots Fired 137 | . 78 59 Missed 30 | . 17 13 Damage Taken 1431 | . 745 686 Core 255 | . 136 119 Absorbed by Shields . | . . . Redirected to Shielding 12 | . . 12 Core Remaining (%) 100 | 100 . . Volleys Fired 71 | . 55 16 Largest 2 | . 2 2 Hottest 136 | . 98 136 Shots Fired 115 | . 85 30 Gun 58 | . 58 . Cannon 42 | . 20 22 Launcher 15 | . 7 8 Special . | . . . Kinetic . | . . . Thermal 100 | . 78 22 Explosive 15 | . 7 8 Electromagnetic . | . . . Robot Hit Streak 14 | . 14 4 Robot Miss Streak 4 | . 4 2 Penetration Max . | . . . Secondary Targets 3 | . 3 . Max Gunslinging Chain 1 | . 1 . Shots Hit Robots 71 | . 57 14 Core Hits 38 | . 29 9 Critical Kills . | . . . Critical Parts Destroyed . | . . . Critical Strikes 3 | . 3 . Burn 3 | . 3 . Melee Attacks . | . . . Impact . | . . . Slashing . | . . . Piercing . | . . . Sneak Attacks . | . . . Combat Hostiles . | . . . Follow-up Attacks . | . . . Damage Inflicted 1523 | . 1074 449 Guns 498 | . 498 . Cannons 468 | . 264 204 Explosions 557 | . 312 245 Melee . | . . . Ramming . | . . . Kinetic . | . . . Thermal 966 | . 762 204 Explosive 557 | . 312 245 Electromagnetic . | . . . Impact . | . . . Slashing . | . . . Piercing . | . . . Highest Corruption . | . . . Average Corruption . | . . . Corruption Purged . | . . . Corruption Blocked . | . . . Overload Shots . | . . . Overflow Damage 6 | . 6 . Projectiles 6 | . 6 . Explosions . | . . . Melee . | . . . Knockbacks . | . . . Impact . | . . . Kinetic . | . . . Secondary . | . . . Self-Inflicted Damage 66 | . . 66 Shots 2 | . . 2 Rammed . | . . . Targets Rammed . | . . . Kicked . | . . . Crushed . | . . . Highest Temperature 405 | . 356 405 Average Temperature 147 | . 124 195 Received Heat Transfer 819 | . 432 387 Effects 4 | . 1 3 Shutdowns 2 | . 1 1 Energy Bleed 2 | . . 2 Siege Activations . | . . . Robots Corrupted . | . . . Combat Hostiles . | . . . Parts Fried . | . . . Impact Corruptions . | . . . Robots Melted 1 | . 1 . Combat Hostiles 1 | . 1 . Parts Melted 6 | . 6 . Heat Transferred 2375 | . 2005 370 Parts Sabotaged . | . . . Parts Stolen . | . . . Parts Stripped . | . . . Power Chain Reactions . | . . . Alert | -11 -10 -10 ------- Run | Yrd Mat Min Peak Influence 251 | . 201 251 Initial 63 | . . 63 Average 106 | . 100 176 Maximum Alert Level 1 | . 1 1 Low Security (%) 85 | 100 90 58 Level 1 14 | . 9 41 Level 2 . | . . . Level 3 . | . . . Level 4 . | . . . Level 5 . | . . . High Security . | . . . Max Security . | . . . Squads Dispatched 5 | . 5 . Investigation 1 | . 1 . Extermination . | . . . Reinforcement 4 | . 4 . Assault . | . . . Garrison . | . . . Intercept . | . . . Searches Triggered . | . . . Construction Impeded . | . . . Haulers Reinforced . | . . . Active Scanning Responses . | . . . Cargo Convoy Interrupts . | . . . Stealth | -11 -10 -10 --------- Run | Yrd Mat Min Distress Signals 3 | . 3 . Communications Jammed . | . . . Distress Signals . | . . . Times Spotted 30 | . 22 8 Peak Tracking Total 5 | . 5 3 Tactical Retreats 1 | . . 1 Traps | -11 -10 -10 ------- Run | Yrd Mat Min Traps Triggered 1 | . 1 . Indirectly . | . . . Trap Hack Attempts . | . . . Triggered . | . . . Disarmed . | . . . Reprogrammed . | . . . Reused . | . . . Traps Extracted . | . . . Installed . | . . . Triggered . | . . . Machines | -11 -10 -10 ---------- Run | Yrd Mat Min Machines Disabled 1 | . 1 . Max in Single Turn 1 | . 1 . Machines Repaired . | . . . Machines Dismantled . | . . . Machines Sabotaged . | . . . Overloaded Fab Kills . | . . . Hacking | -11 -10 -10 --------- Run | Yrd Mat Min Machines Accessed 1 | . 1 . Terminals 1 | . 1 . Fabricators . | . . . Repair Stations . | . . . Recycling Units . | . . . Scanalyzers . | . . . Garrison Access . | . . . Total Hacks 5 | . 5 . Successful 4 | . 4 . Failed 1 | . 1 . Catastrophic . | . . . Database Lockouts . | . . . Manual . | . . . Terminals 5 | . 5 . Fabricators . | . . . Repair Stations . | . . . Recycling Units . | . . . Scanalyzers . | . . . Garrison Access . | . . . Terminal Hacks 4 | . 4 . Alert Level 1 | . 1 . Dispatch Records 1 | . 1 . Maintenance Status 1 | . 1 . Zone Layout 1 | . 1 . Fabricator Hacks . | . . . Repair Station Hacks . | . . . Recycling Unit Hacks . | . . . Scanalyzer . | . . . Garrison Access Hacks . | . . . Unauthorized Hacks . | . . . Terminals . | . . . Fabricators . | . . . Repair Stations . | . . . Recycling Units . | . . . Scanalyzers . | . . . Garrison Access . | . . . Data Cores Recovered . | . . . Used . | . . . Hacking Detections . | . . . Full Trace Events . | . . . Feedback Events . | . . . Feedback Blocked . | . . . Robot Schematics Acquired . | . . . Robots Built . | . . . Authchips . | . . . Time . | . . . Total Robot Build Rating . | . . . Part Schematics Acquired . | . . . Parts Built . | . . . Authchips . | . . . Time . | . . . Total Part Build Rating . | . . . Parts Repaired . | . . . Time . | . . . Parts Recycled . | . . . Recycled Matter . | . . . Retrieved Matter . | . . . Retrieved Components . | . . . Parts Scanalyzed . | . . . Part Schematics Acquired . | . . . Parts Damaged . | . . . Bothacking | -11 -10 -10 ------------ Run | Yrd Mat Min Used RIF Installer . | . . . Robots Hacked . | . . . Non-combat . | . . . Combat . | . . . Robot Hacks Applied . | . . . Relay Couplers Released . | . . . Fabnet Peak Effective % . | . . . Robots Rewired . | . . . Allies Hacked . | . . . Hacks Repelled . | . . . Allies | -11 -10 -10 -------- Run | Yrd Mat Min Total Allies . | . . . Largest Group . | . . . Highest-Rated Group . | . . . Highest-Rated Ally . | . . . Total Orders . | . . . Ally Attacks . | . . . Total Damage . | . . . Kills . | . . . Allies Corrupted . | . . . Allies Melted . | . . . Intel | -11 -10 -10 ------- Run | Yrd Mat Min Robot Analysis Total . | . . . Derelict Logs Recovered . | . . . Drone Launches . | . . . Drone Recoveries . | . . . Exploration | -11 -10 -10 ------------- Run | Yrd Mat Min Turns Passed 1024 | 72 766 186 Spaces Moved 477 | 38 355 84 Core 1 | 1 . . Treads 476 | 37 355 84 Legs . | . . . Wheels . | . . . Hover . | . . . Flight . | . . . Fastest Speed 50 | 50 160 160 Average Speed 159 | 157 160 160 Slowest Speed 240 | 160 160 240 Overloaded Moves . | . . . Propulsion Burnouts . | . . . Robots Hopped . | . . . Cave-ins Triggered . | . . . Exploration Rate (%) 24 | 4 58 12 Regions Visited 2 Branch Regions 1 Pre-discovered Areas . | . . . Known Exits Taken . | . . . Unknown Exits Taken 2 | 1 1 . Scrap Searched . | . . . Spaces Dug . | . . . Terrain Destroyed 98 | . 25 73 Melee . | . . . Projectile 3 | . . 3 AOE 95 | . 25 70 Terrain Rammed . | . . . Walls Destroyed . | . . . Machines Disabled . | . . . Actions | -11 -10 -10 --------- Run | Yrd Mat Min Total 625 | 50 470 105 Wait 15 | . 15 . Move 475 | 37 354 84 Hop . | . . . Pick Up 31 | 7 24 . Fast Attach . | . . . Attach 13 | 6 4 3 Detach . | . . . Swap 8 | . 7 1 Drop 12 | . 11 1 Fire 71 | . 55 16 Melee . | . . . Ram . | . . . Kick . | . . . Crush . | . . . Escape Stasis . | . . . Rewire . | . . . Trap . | . . . Miscellaneous . | . . . Route ------- -11/Scrapyard -10/Materials (discovered 2 exits: [*Mat] / [*Min]) -10/Mines History --------- Turn | Location | Event 16 | -11/Scrapyard | Discovered new exit (range 15) 73 | -11/Scrapyard | Entered Materials 302 | -10/Materials | Build established: Mutant 333 | -10/Materials | Core integrity fell below 50% 498 | -10/Materials | Discovered new exit (range 13) 571 | -10/Materials | Discovered new exit (range 14) 839 | -10/Materials | Entered Mines 977 | -10/Mines | Core integrity fell below 20% 1025 | -10/Mines | Destroyed by G-47 Trooper with Particle Gun Last Messages --------------- 00973_ K-01 Serf collects debris. 00982_ G-47 Trooper destroyed. 00985_ The unstable cave ceiling collapses. 00986_ U-05 Engineer lays Concrete. 00987_ Power failure, Imp. Ion Engine shutdown. 00987_ U-05 Engineer lays Concrete. 00988_ U-05 Engineer builds a Wall. 00988_ Critical hit (Burn: +37). 00991_ Imp. Ion Engine destroyed. 01006_ R-06 Scavenger collects Heat Sink. 01009_ Overheating: Energy bleed (-34). 01012_ U-05 Engineer lays Concrete. 01015_ Acquired 22 matter. 01016_ The unstable cave ceiling collapses. 01016_ U-05 Engineer builds a Wall. 01017_ Overheating: Energy bleed (-27). 01020_ G-34 Mercenary destroyed. 01021_ U-05 Engineer lays Concrete. 01023_ Lgt. Treads destroyed. 01024_ U-05 Engineer builds a Wall. Map ----- +----------------------------------------------------+ | | | | | | | | | | | | | | | | | | | | | ?????????????????????????????????????????? | | ?????????????????????????????????????????? | | ?????????????????????????????????????????? | | ?????######??????????????????????????????? | | ?????# ##########?????????????????????? | | ????## # # #?????????????????????? | | ????# ##?????????????????????? | | ????# #?????????????????????? | | ????# *%rg ###???????????????????? | | ????# %= #???????????????????? | | ????## # ##???????????????????? | | ?????#### # ##????????????????????? | | ????????# ### ###?????????????????????? | | ???????## ##?# ###??###????????????????? | | ???????# #### #### ##???????????????? | | ???????# ## @ #???????????????? | | ???????# # #### #??????????????? | | ???????# u ####??# #??????????????? | | ???????## %###???# #??????????????? | | ???????# = ?????????????? | | ???????## ### # ### # ###????????????? | | ?????#### # ######?# ####??????????????? | | ?????# ####??????# ??????????????????? | | ?????# #####?????????# ??????????????????? | | ?????# #?????????????# ??????????????????? | | ?????# ###???????????# ??????????????????? | | ????## #???????????# ??????????????????? | | ????# ##??????????? ??????????????????? | | ????# ##??###?????? ???????????????????? | | ????# ## ###???? ???????????????????? | | ????# #???? ???????????????????? | | ????# #???????????????????????? | | ????## ### #???????????????????????? | | ?????#####??? ##???????????????????????? | | ?????????????? #????????????????????????? | | ??????????????? #????????????????????????? | | ????????????????#????????????????????????? | | ?????????????????????????????????????????? | | ?????????????????????????????????????????? | | ?????????????????????????????????????????? | +----------------------------------------------------+ Best States ------------- Heat Dissipation 35 Energy Generation 12 Energy Capacity 265 Matter Stores 300 Matter Capacity 300 Sight Range 16 Terrain Scan Density 10 Core Shielding 20 Evasion (%) 40 Recoil Reduction 2 Item Schematics ----------------- None Robot Schematics ------------------ None Fabricated ------------ Nothing Alien Tech Used ----------------- None Achievements -------------- None Challenges ------------ None Game ------ Seed ProcessingMetaStorm Manual? 0 Play Time 00:18:01 Cumulative 12.6 hours Start 2024.04.06 @ 18:01:24 End 2024.04.06 @ 18:20:03 Sessions 1 Manual Loads 0 Difficulty Rogue Special Mode None Game No. 13 Rogue 13 Adventurer 0 Explorer 0 Win Type - Total 0 Types 0/0/0/0/0/0/0/0/0 Lore% 14 Gallery% 13 Achievement% 12 Wizard Run 0 Options --------- Layout 1 ASCII 0 Keyboard 0 Movement Mouse Keybinds 0 Fullscreen 1 Font 24/Smallcaps Map View 50x35 Zoom Use 40% Tactical HUD 1 Map Filters NONE Filters NONE Steam 1 RUN: 37baec66-50f1-41fd-a1ff-36b56946fe0e